bitfinex-derivatives/quotes_ETHF0:USTF0_20250410
["timestamp","ask_amount","ask_price","bid_price","bid_amount"]
[1744270055918,5.46433,1614.3,1614.1,1.23937]
[1744270056122,5.46433,1614.3,1614.2,1.5254]
[1744270056918,4.225,1614.3,1614.0,5.78180745]
[1744270057221,1.6852,1614.2,1614.1,1.23942]
[1744270057423,5.4643,1614.3,1614.2,1.23935]
[1744270057923,8.9193,1614.6,1614.4,1.23916]
[1744270058225,8.63577,1614.6,1614.5,1.23912]
[1744270058418,4.226,1614.6,1614.5,2.76452]
[1744270060139,1.23904,1614.6,1614.5,1.5254]
[1744270060334,2.79324,1614.6,1614.5,1.5254]
[1744270060835,2.79324,1614.6,1614.5,2.76452]
[1744270061137,6.08689105,1614.7,1614.6,1.23904]
[1744270061436,6.40207105,1614.7,1614.6,2.85184]
[1744270061738,7.64103105,1614.7,1614.6,2.85184]
[1744270062038,7.64103105,1614.7,1614.6,1.6128]
[1744270062238,1.23912,1614.5,1614.4,7.02092745]
[1744270062539,1.23912,1614.5,1614.4,7.43130745]
[1744270062738,7.11198,1614.6,1614.4,8.67044745]
[1744270063035,1.23912,1614.5,1614.4,8.67044745]
[1744270063224,7.11199,1614.6,1614.5,1.23912]
[1744270063427,7.11199,1614.6,1614.5,2.88862]
[1744270063627,4.225,1614.6,1614.5,2.88862]
[1744270064838,4.28282,1614.8,1614.7,1.23896]
[1744270065138,8.50782,1614.8,1614.7,4.44676]
[1744270065342,8.50782,1614.8,1614.7,3.2078]
[1744270065845,1.23896,1614.7,1614.6,2.7616]
[1744270066041,2.79946,1614.7,1614.6,1.5226]
[1744270066339,1.5605,1614.7,1614.6,2.76164]
[1744270066644,2.79946,1614.7,1614.6,2.76164]
[1744270066833,1.5605,1614.7,1614.6,2.76164]
[1744270067141,2.79946,1614.7,1614.6,1.5226]
[1744270067441,1.23904,1614.6,1614.5,4.44686]
[1744270067636,1.23912,1614.5,1614.4,5.43917745]
[1744270067839,1.23912,1614.5,1614.4,2.57400745]
[1744270068340,12.4328,1614.5,1614.2,2.57400745]
[1744270068541,4.225,1614.5,1614.4,1.23919]
[1744270068735,5.8415,1614.5,1614.4,1.23919]
[1744270069138,4.225,1614.5,1614.4,1.23919]
[1744270069338,4.225,1614.5,1614.4,2.86519]
[1744270071539,5.46412,1614.5,1614.4,2.86519]
[1744270071741,4.225,1614.5,1614.4,2.86519]
[1744270073149,5.46412,1614.5,1614.4,2.86519]
[1744270073351,1.23919,1614.4,1614.3,2.71035]
[1744270073544,2.89669,1614.4,1614.3,2.71035]
[1744270073847,2.89669,1614.4,1614.3,7.47735]
[1744270074047,2.89669,1614.4,1614.3,7.47737]
[1744270074244,2.89669,1614.4,1614.3,3.0303]
[1744270074548,2.89669,1614.4,1614.3,4.26957]
[1744270074941,2.89669,1614.4,1614.3,7.47737]
[1744270075147,1.6575,1614.4,1614.3,7.47737]
[1744270075544,2.89669,1614.4,1614.3,7.47737]
[1744270075846,5.46418,1614.5,1614.4,1.23919]
[1744270076149,5.46418,1614.5,1614.4,2.79839]
[1744270076952,5.46418,1614.5,1614.4,1.5592]
[1744270077245,7.13858,1614.5,1614.4,1.5592]
[1744270078247,1.23919,1614.4,1614.3,3.2078]
[1744270078446,1.23927,1614.3,1614.2,3.81334745]
[1744270078643,1.3572,1614.3,1614.0,3.93960745]
[1744270078845,1.23942,1614.1,1614.0,3.93960745]
[1744270079139,1.23942,1614.1,1614.0,5.52230745]
[1744270079336,2.91382,1614.1,1614.0,5.52230745]
[1744270079942,2.91382,1614.1,1614.0,2.57400745]
[1744270080241,1.2395,1614.0,1613.9,5.43368745]
[1744270080443,2.856,1614.0,1613.9,5.43368745]
[1744270080746,1.6165,1614.0,1613.9,5.43368745]
[1744270080947,1.2395,1614.0,1613.9,5.43368745]
[1744270081449,2.85598,1614.1,1614.0,1.2395]
[1744270081653,2.85598,1614.1,1614.0,1.6201]
[1744270082453,2.85598,1614.1,1614.0,2.8596]
[1744270082851,6.86028,1614.2,1614.0,1.6201]
[1744270083155,1.2395,1614.0,1613.9,7.02133745]
[1744270083348,1.2395,1614.0,1613.9,8.69473745]
[1744270083548,2.86068,1614.1,1613.9,8.69473745]
[1744270083750,2.86068,1614.1,1614.0,1.6734]
[1744270084448,1.6212,1614.1,1614.0,2.9129]
[1744270084658,2.86062,1614.1,1614.0,2.9129]
[1744270084844,1.6212,1614.1,1614.0,2.9129]
[1744270085041,2.86062,1614.1,1614.0,2.9129]
[1744270085856,2.86062,1614.1,1614.0,1.6734]
[1744270086464,1.2395,1614.0,1613.9,3.99400745]
[1744270086649,2.92,1614.0,1613.9,5.67570745]
[1744270088550,1.2395,1614.0,1613.9,5.67570745]
[1744270089054,1.23965,1613.8,1613.7,2.57400745]
[1744270089446,1.23973,1613.7,1613.6,1.6162]
[1744270089652,2.79623,1613.7,1613.6,1.6162]
[1744270090053,1.23981,1613.6,1613.5,5.78180745]
[1744270090262,1.23988,1613.5,1613.4,1.6162]
[1744270090459,1.23996,1613.4,1613.3,2.57400745]
[1744270090754,2.79646,1613.4,1613.3,2.57400745]
[1744270090962,2.79646,1613.4,1613.3,4.19020745]
[1744270091165,1.23996,1613.4,1613.3,4.19020745]
[1744270091366,1.23993,1613.5,1613.4,1.23996]
[1744270091553,1.23993,1613.5,1613.4,1.6162]
[1744270091754,5.46487,1613.6,1613.4,2.85616]
[1744270092054,5.46487,1613.6,1613.5,1.3881]
[1744270092247,5.46487,1613.6,1613.5,2.9146]
[1744270092657,7.07527,1613.6,1613.5,2.9146]
[1744270092861,7.07527,1613.6,1613.3,7.16990745]
[1744270092862,1.23996,1613.4,1613.3,7.16990745]
[1744270093055,1.23996,1613.4,1613.3,8.69640745]
[1744270094666,1.24004,1613.3,1613.2,10.98263832]
[1744270094966,5.46604,1613.3,1613.2,2.8887]
[1744270095363,7.02314,1613.3,1613.2,2.8887]
[1744270096164,1.2405,1612.7,1612.6,9.62043832]
[1744270096360,1.2405,1612.7,1612.6,11.27373832]
[1744270098158,2.8192,1612.7,1612.6,11.27373832]
[1744270098453,0.00928764,1612.8,1612.7,1.2405]
[1744270098766,0.00928764,1612.8,1612.7,2.8558]
[1744270098966,0.00928764,1612.8,1612.7,7.8558]
[1744270099267,1.24970764,1612.8,1612.7,6.6153]
[1744270099754,0.00928764,1612.8,1612.7,7.8558]
[1744270100666,1.24970764,1612.8,1612.7,7.8558]
[1744270100866,1.24970764,1612.8,1612.7,6.6153]
[1744270101077,4.45750764,1612.8,1612.7,6.6153]
[1744270101372,8.68450764,1612.8,1612.7,5.0]
[1744270101757,1.24058,1612.6,1612.5,42.4026]
[1744270102566,1.24073,1612.4,1612.3,3.2078]
[1744270102767,1.24073,1612.4,1612.3,4.8104]
[1744270102967,1.24073,1612.4,1612.3,1.6026]
[1744270103163,1.24081,1612.3,1612.2,40.8]
[1744270103359,6.1585,1612.4,1612.1,1.4385]
[1744270103564,1.24111,1611.9,1611.8,5.40110745]
[1744270103863,1.24111,1611.9,1611.8,3.0411]
[1744270104069,1.24111,1611.9,1611.8,43.8411]
[1744270104257,4.227,1612.0,1611.8,45.08227]
[1744270104463,5.46811,1612.0,1611.9,1.584]
[1744270105561,1.24111,1611.9,1611.8,40.8]
[1744270105770,1.24119,1611.8,1611.7,11.20443832]
[1744270105965,4.44899,1611.8,1611.7,9.62043832]
[1744270106170,5.85639,1611.8,1611.7,9.62043832]
[1744270106571,7.50289,1611.8,1611.7,9.62043832]
[1744270106961,12.50289,1611.8,1611.7,8.28526832]
[1744270107164,12.50289,1611.8,1611.7,1.30900124]
[1744270107566,1.2415,1611.4,1611.3,1.584]
[1744270107767,5.4805,1611.4,1611.3,1.584]
[1744270107970,4.239,1611.4,1611.3,1.584]
[1744270108169,4.239,1611.4,1611.3,2.82558]
[1744270108371,4.239,1611.5,1611.4,1.2415]
[1744270108570,5.48042,1611.5,1611.4,1.6385]
[1744270110572,7.16292,1611.5,1611.4,1.6385]
[1744270111975,4.44919,1611.6,1611.4,6.6385]
[1744270112173,1.24142,1611.5,1611.4,1.6385]
[1744270112374,4.44922,1611.5,1611.4,1.6385]
[1744270112870,1.24173,1611.1,1611.0,5.28450869]
[1744270113776,1.24173,1611.1,1611.0,3.97550745]
[1744270114275,1.24173,1611.1,1611.0,5.54270745]
[1744270114476,1.24173,1611.1,1611.0,6.78451745]
[1744270115175,4.24,1611.2,1611.0,6.78451745]
[1744270115381,1.24173,1611.1,1611.0,5.54270745]
[1744270117379,1.24181,1611.0,1610.5,43.37400745]
[1744270117577,1.24204,1610.7,1610.6,1.6251]
[1744270117783,4.44981,1610.8,1610.6,2.86722]
[1744270118083,1.24204,1610.7,1610.6,2.86722]
[1744270118281,1.24204,1610.7,1610.6,1.6251]
[1744270118481,7.45808764,1610.9,1610.6,2.86722]
[1744270118683,1.24204,1610.7,1610.6,1.6251]
[1744270118876,6.31292,1610.7,1610.3,1.24232]
[1744270119183,1.24223,1610.5,1610.3,7.24202]
[1744270119379,1.24223,1610.5,1610.4,40.8]
[1744270119584,1.24214,1610.6,1610.4,42.0422]
[1744270119784,1.24219,1610.5,1610.4,40.8]
[1744270119975,1.24206,1610.7,1610.4,40.8]
[1744270120276,1.6714,1610.8,1610.4,40.8]
[1744270120476,7.45808764,1610.9,1610.6,1.24211]
[1744270120684,1.24204,1610.7,1610.6,3.81611745]
[1744270121285,1.242,1610.8,1610.7,1.24203]
[1744270121484,1.24204,1610.7,1610.6,3.81606745]
[1744270122386,1.24204,1610.7,1610.6,2.57400745]
[1744270122582,1.24204,1610.7,1610.6,3.81612745]
[1744270122887,1.24204,1610.7,1610.6,2.57400745]
[1744270123382,5.48302,1610.8,1610.6,3.81605745]
[1744270123584,5.48302,1610.8,1610.7,1.24204]
[1744270123788,1.24204,1610.7,1610.6,3.81605745]
[1744270123984,5.48301,1610.8,1610.6,2.57400745]
[1744270124185,3.21708764,1610.9,1610.7,1.24198]
[1744270124381,4.242,1610.8,1610.7,1.24198]
[1744270124680,4.242,1610.8,1610.7,4.03268]
[1744270124887,0.00928764,1610.9,1610.8,1.24196]
[1744270125880,1.25116764,1610.9,1610.8,1.24196]
[1744270126284,0.00928764,1610.9,1610.8,1.24196]
[1744270127080,0.00928764,1610.9,1610.7,8.57250745]
[1744270127285,1.24196,1610.8,1610.7,5.36470745]
[1744270127485,1.24196,1610.8,1610.7,6.60669745]
[1744270127679,1.24196,1610.8,1610.7,5.36470745]
[1744270127987,0.00928764,1610.9,1610.8,1.24196]
[1744270128380,5.49316764,1610.9,1610.8,1.24196]
[1744270129487,4.25128764,1610.9,1610.8,1.24196]
[1744270129883,0.00928764,1610.9,1610.8,1.24196]
[1744270131191,1.25116764,1610.9,1610.8,1.24196]
[1744270131489,0.00928764,1610.9,1610.8,1.24196]
[1744270132289,1.25116764,1610.9,1610.7,8.57250745]
[1744270132481,1.25116764,1610.9,1610.8,1.24196]
[1744270132982,0.00928764,1610.9,1610.8,1.24196]
[1744270133184,3.2078,1611.5,1610.9,3.10472]
[1744270133389,1.24165,1611.2,1611.0,3.81581745]
[1744270133580,5.7745,1611.4,1611.0,2.57400745]
[1744270133780,1.24165,1611.2,1611.1,2.67971]
[1744270133980,1.24165,1611.2,1611.1,2.8734]
[1744270134190,1.24165,1611.2,1611.1,4.11509]
[1744270134385,1.25091764,1611.3,1611.1,4.11509]
[1744270134578,1.25090764,1611.3,1611.1,4.11508]
[1744270134778,1.24165,1611.2,1611.1,4.11508]
[1744270134982,0.00928764,1611.3,1611.1,4.11508]
[1744270135182,1.24173,1611.1,1611.0,2.58329509]
[1744270136082,2.83663,1611.1,1611.0,2.58329509]
[1744270136688,7.12963,1611.1,1611.0,2.58329509]
[1744270136995,10.33743,1611.1,1611.0,2.58329509]
[1744270137290,7.12963,1611.1,1611.0,2.58329509]
[1744270137491,5.53473,1611.1,1611.0,2.58329509]
[1744270137789,5.53473,1611.1,1611.0,5.79109509]
[1744270137790,4.293,1611.1,1611.0,5.79109509]
[1744270138089,9.15578764,1611.3,1611.0,5.44830509]
[1744270138288,1.24165,1611.2,1611.1,1.6232]
[1744270138486,1.24173,1611.1,1611.0,2.58329509]
[1744270139178,2.88743,1611.1,1611.0,2.58329509]
[1744270139782,2.88743,1611.1,1611.0,4.20649509]
[1744270139984,2.88743,1611.1,1611.0,1.63248764]
[1744270140392,15.28353,1611.1,1611.0,7.64e-06]
[1744270140689,3.10472,1611.0,1610.4,1.24221]
[1744270140884,1.24219,1610.6,1610.5,42.3314]
[1744270141090,1.24219,1610.6,1610.5,1.5314]
[1744270141588,1.24219,1610.6,1610.5,42.3314]
[1744270141789,2.85709,1610.6,1610.5,40.8]
[1744270141986,4.19669,1610.6,1610.5,40.8]
[1744270142189,1.24227,1610.4,1610.3,2.57400745]
[1744270142590,4.293,1610.6,1610.3,48.11320745]
[1744270142891,1.24219,1610.5,1610.4,4.18564]
[1744270143094,5.53518,1610.6,1610.4,4.18564]
[1744270143287,5.53518,1610.6,1610.5,1.5314]
[1744270144688,9.1157,1610.8,1610.5,1.5314]
[1744270144889,4.293,1610.8,1610.5,4.7392]
[1744270145189,1.24206,1610.7,1610.6,1.3415]
[1744270145389,1.24202,1610.8,1610.6,5.50540745]
[1744270145694,1.24202,1610.8,1610.7,3.0029]
[1744270146190,1.24196,1610.8,1610.7,3.0029]
[1744270147084,11.9236,1611.0,1610.7,4.2449]
[1744270147285,1.24196,1610.8,1610.7,3.98700745]
[1744270148392,1.24196,1610.8,1610.7,2.57400745]
[1744270148896,4.44976,1610.8,1610.7,2.57400745]
[1744270150802,1.24226,1610.5,1610.3,45.98788745]
[1744270151098,7.3034,1610.7,1610.3,47.95340745]
[1744270151296,1.24227,1610.4,1610.3,49.19569745]
[1744270151494,2.81898,1610.6,1610.4,1.24219]
[1744270151694,5.7266,1610.7,1610.5,1.24219]
[1744270151892,7.3034,1610.7,1610.5,1.24217]
[1744270152095,1.24215,1610.6,1610.5,1.24217]
[1744270152702,1.24215,1610.6,1610.4,2.59081]
[1744270153297,1.24215,1610.6,1610.5,1.24219]
[1744270154511,4.25149,1610.7,1610.6,1.24212]
[1744270154708,6.08988105,1610.8,1610.6,1.24212]
[1744270155010,1.24208,1610.7,1610.6,1.24208]
[1744270155213,1.24208,1610.7,1610.5,2.57400745]
[1744270155402,7.69584105,1610.8,1610.7,1.24204]
[1744270155709,7.69584105,1610.8,1610.6,1.24206]
[1744270155900,1.24204,1610.7,1610.5,2.57400745]
[1744270156101,1.24204,1610.7,1610.5,3.81612745]
[1744270156300,4.84787105,1610.8,1610.7,1.24204]
[1744270156507,4.84787105,1610.8,1610.6,1.24205]
[1744270156700,1.24204,1610.7,1610.6,1.24205]
[1744270157109,3.1051,1610.7,1610.4,3.2078]
[1744270157306,1.2425,1610.1,1610.0,2.57400745]
[1744270158607,2.911,1610.1,1610.0,3.81658745]
[1744270158808,2.73558764,1610.2,1610.0,3.81658745]
[1744270159009,1.2425,1610.1,1610.0,3.81658745]
[1744270159314,1.2425,1610.1,1610.0,2.57400745]
[1744270159702,1.2425,1610.1,1610.0,5.78180745]
[1744270159902,1.2425,1610.1,1610.0,3.81658745]
[1744270160510,5.64655764,1610.2,1610.0,3.81655745]
[1744270160715,4.23905764,1610.2,1610.0,5.78180745]
[1744270160903,0.00928764,1610.2,1610.1,1.2425]
[1744270161105,0.00928764,1610.2,1610.1,5.20030745]
[1744270161415,1.24212,1610.6,1610.5,1.24216]
[1744270161712,1.24212,1610.6,1610.5,42.04216]
[1744270162115,1.24212,1610.6,1610.5,40.8]
[1744270162412,1.24212,1610.6,1610.5,42.04219]
[1744270162613,0.00928764,1610.7,1610.5,42.04219]
[1744270162815,1.24212,1610.6,1610.5,42.04219]
[1744270163514,0.00928764,1610.7,1610.5,42.04219]
[1744270163715,1.25137764,1610.7,1610.5,42.04219]
[1744270163913,0.00928764,1610.7,1610.6,1.24212]
[1744270164216,0.00928764,1610.7,1610.6,2.58512]
[1744270164414,1.25132764,1610.7,1610.6,2.58512]
[1744270164713,4.85715869,1610.7,1610.6,2.58512]
[1744270164916,6.09919869,1610.7,1610.6,1.343]
[1744270166318,4.85715869,1610.7,1610.6,5.15912745]
[1744270166612,6.09919869,1610.7,1610.6,3.91700745]
[1744270166916,6.09919869,1610.7,1610.6,5.48720745]
[1744270169418,1.25132764,1610.7,1610.6,5.48720745]
[1744270171019,1.25132764,1610.7,1610.6,6.72932745]
[1744270171621,1.25132764,1610.7,1610.6,5.48720745]
[1744270172410,1.25132764,1610.7,1610.6,6.72932745]
[1744270173011,0.00928764,1610.7,1610.6,5.48720745]
[1744270173212,1.25132764,1610.7,1610.6,6.72932745]
[1744270174908,1.25132764,1610.7,1610.6,5.48720745]
[1744270175114,1.25132764,1610.7,1610.6,6.72932745]
[1744270175512,1.25132764,1610.7,1610.6,5.48720745]
[1744270177417,2.87192764,1610.7,1610.6,2.57400745]
[1744270177810,6.07972764,1610.7,1610.6,2.57400745]
[1744270178016,1.24212,1610.6,1610.5,43.37400745]
[1744270178215,4.20072,1610.6,1610.5,43.37400745]
[1744270178924,4.20072,1610.6,1610.5,2.57400745]
[1744270179320,4.20072,1610.6,1610.5,43.37400745]
[1744270180229,4.20072,1610.6,1610.5,2.57400745]
[1744270181822,1.24219,1610.5,1610.4,0.00928764]
[1744270182127,11.67899,1610.5,1610.4,0.00928764]
[1744270182327,16.67899,1610.5,1610.4,0.00928764]
[1744270185230,11.67899,1610.5,1610.4,0.00928764]
[1744270189336,32.14075548,1610.5,1610.4,0.00928764]
[1744270192135,35.89856548,1610.5,1609.9,2.57400745]
[1744270192339,1.24281,1609.7,1609.6,2.57400745]
[1744270192634,1.24281,1609.7,1609.6,6.58489745]
[1744270192841,4.33,1609.8,1609.7,1.24281]
[1744270193140,9.03938,1610.2,1609.8,1.24266]
[1744270193335,1.25197677,1609.9,1609.8,5.06586745]
[1744270193835,1.25197677,1609.9,1609.8,10.06586745]
[1744270194032,1.25197677,1609.9,1609.8,3.82320745]
[1744270195436,21.48788677,1609.9,1609.4,14.59301937]
[1744270195740,1.24296,1609.5,1609.4,14.59301937]
[1744270196040,5.57296,1609.5,1609.4,14.59301937]
[1744270196237,20.62546,1609.5,1609.4,11.17080173]
[1744270196539,1.24312,1609.3,1609.2,34.70829029]
[1744270196727,4.45092,1609.3,1609.2,34.70829029]
[1744270197231,4.45092,1609.3,1609.2,33.40658029]
[1744270197634,5.98082,1609.3,1609.2,33.40658029]
[1744270198128,5.98082,1609.3,1609.2,31.56991029]
[1744270198334,10.98082,1609.3,1609.2,29.39997029]
[1744270198544,10.98082,1609.3,1609.2,25.71442029]
[1744270198734,5.98082,1609.3,1609.2,25.71442029]
[1744270199041,5.98082,1609.3,1609.2,22.38862029]
[1744270199339,5.98082,1609.3,1609.2,20.96778029]
[1744270199636,9.7377,1609.3,1609.1,24.13412681]
[1744270199834,1.24351,1608.8,1608.7,28.15120938]
[1744270200238,1.24351,1608.8,1608.7,34.50100938]
[1744270200834,1.24351,1608.8,1608.7,29.50100938]
[1744270201030,1.24351,1608.8,1608.7,1.3498]
[1744270203535,4.45131,1608.8,1608.7,1.3498]
[1744270205041,1.24351,1608.8,1608.7,1.3498]
[1744270205337,6.31657,1608.8,1608.3,22.05992868]
[1744270205535,1.24381,1608.4,1608.3,22.05992868]
[1744270205730,5.58481,1608.4,1608.3,19.48592123]
[1744270205944,13.79261,1608.4,1608.3,16.09361123]
[1744270206146,1.24389,1608.3,1608.2,22.75078153]
[1744270206335,2.80129,1608.3,1608.2,21.48177153]
[1744270206642,2.80129,1608.3,1608.2,21.51433837]
[1744270207042,2.80129,1608.3,1607.8,2.57400745]
[1744270207043,1.24405,1608.1,1607.8,2.57400745]
[1744270207248,1.24405,1608.1,1607.7,1.3602]
[1744270207249,1.24428,1607.8,1607.7,1.3602]
[1744270207539,4.45208,1607.8,1607.7,0.03257368]
[1744270207938,3.2078,1607.8,1607.3,3.2078]
[1744270208149,1.24454,1607.5,1607.3,4.45246]
[1744270208437,3.2078,1607.4,1606.8,2.57400745]
[1744270208636,1.24484,1607.1,1607.0,1.291]
[1744270209038,3.11225,1607.0,1606.6,28.15120938]
[1744270209232,1.24513,1606.7,1606.6,28.15120938]
[1744270209434,1.245,1606.9,1606.6,29.69890938]
[1744270209638,0.00931677,1607.0,1606.8,1.24503]
[1744270209840,1.25421677,1607.0,1606.9,2.8387]
[1744270210237,1.25421677,1607.0,1606.9,7.8387]
[1744270210434,3.21711677,1607.0,1606.6,28.15120938]
[1744270210746,1.24513,1606.7,1606.6,28.15120938]
[1744270211148,7.56011677,1607.0,1606.6,33.15120938]
[1744270211343,3.21711677,1607.0,1606.7,1.24509]
[1744270211532,3.21711677,1607.0,1606.6,31.35900938]
[1744270211533,1.24504,1606.9,1606.6,32.60416938]
[1744270211734,1.24505,1606.8,1606.7,42.3863]
[1744270212150,1.24505,1606.8,1606.7,1.5863]
[1744270212447,1.24505,1606.8,1606.4,1.2997]
[1744270212448,1.24529,1606.5,1606.4,1.2997]
[1744270212644,1.24536,1606.4,1606.3,1.5863]
[1744270212841,1.2456,1606.1,1606.0,4.5075]
[1744270213244,1.24567,1606.0,1605.9,40.8]
[1744270213641,1.24567,1606.0,1605.8,1.3052]
[1744270213642,3.11402,1606.1,1605.6,2.57400745]
[1744270213841,1.24576,1605.9,1605.7,1.24587]
[1744270214135,3.11477,1605.7,1604.8,2.57400745]
[1744270214336,3.2078,1605.2,1604.9,1.559]
[1744270214536,3.2078,1605.0,1604.5,1.08806541]
[1744270214742,4.45456,1604.6,1604.5,2.64706541]
[1744270214941,4.45456,1604.6,1604.5,2.05645143]
[1744270215153,4.45456,1604.6,1604.3,28.15120938]
[1744270215154,9.05856,1604.6,1604.3,28.15120938]
[1744270215450,4.45472,1604.4,1604.3,28.15120938]
[1744270216040,9.45472,1604.4,1604.3,28.15120938]
[1744270216242,9.45472,1604.4,1604.3,26.80322938]
[1744270216746,9.45472,1604.4,1604.3,24.87100938]
[1744270216945,4.45472,1604.4,1604.3,24.87100938]
[1744270217144,4.45473,1604.4,1603.9,4.8088]
[1744270217337,4.843,1604.3,1604.0,1.24723]
[1744270217542,1.24707,1604.2,1604.1,1.601]
[1744270217743,3.2078,1604.2,1603.4,3.2078]
[1744270217943,3.2078,1603.7,1603.5,1.601]
[1744270218143,3.2078,1603.7,1603.6,1.24754]
[1744270218447,8.0528,1603.9,1603.5,9.8088]
[1744270218647,3.2078,1603.9,1603.5,4.8088]
[1744270218950,3.2078,1603.9,1603.8,1.24738]
[1744270219250,0.00934608,1604.0,1603.9,1.2473]
[1744270219650,0.00934608,1604.0,1603.9,6.2473]
[1744270219854,0.00934608,1604.0,1603.9,7.8639]
[1744270220053,3.2078,1604.1,1603.9,9.845]
[1744270220246,1.1614,1604.1,1604.0,3.11469466]
[1744270220448,3.2078,1604.3,1604.2,1.24707]
[1744270221149,3.2078,1604.3,1604.0,1.86746466]
[1744270221348,3.2078,1604.3,1604.1,1.25647608]
[1744270221651,4.45482,1604.3,1604.1,0.00934608]
[1744270221847,1.24707,1604.2,1604.1,0.00934608]
[1744270222047,4.45485,1604.3,1604.1,0.00934608]
[1744270222350,1.24707,1604.2,1604.1,0.00934608]
[1744270222746,6.24707,1604.2,1604.1,0.00934608]
[1744270222950,7.88137,1604.2,1604.1,0.00934608]
[1744270223150,2.88137,1604.2,1604.1,0.00934608]
[1744270223356,6.24707,1604.2,1604.1,0.00934608]
[1744270223543,3.1179,1604.1,1603.2,0.65903073]
[1744270223854,4.45547,1603.5,1603.2,1.35777607]
[1744270224053,8.0548,1603.5,1603.2,0.10996607]
[1744270224251,14.30246,1603.5,1603.2,0.10996607]
[1744270224444,14.30246,1603.5,1603.3,40.8]
[1744270224445,13.0548,1603.5,1603.3,40.8]
[1744270224651,1.2477,1603.4,1603.3,40.8]
[1744270224847,1.24777,1603.3,1603.2,0.10996607]
[1744270225152,4.45557,1603.3,1603.2,0.10996607]
[1744270225357,9.45557,1603.3,1603.2,0.10996607]
[1744270225854,3.2078,1603.3,1603.2,1.35781607]
[1744270226348,3.2078,1603.3,1603.2,6.24785]
[1744270226554,0.00934608,1603.5,1603.4,1.24769]
[1744270226741,4.46477608,1603.5,1603.2,1.24781]
[1744270226946,4.46477608,1603.5,1602.7,3.2078]
[1744270226947,3.2078,1601.8,1586.7,1000.0]
[1744270227142,108.607,1601.7,1595.5,3.2078]
[1744270227352,3.2078,1596.0,1595.8,66.66088828]
[1744270227552,3.2078,1597.0,1595.9,9.8849707]
[1744270227848,3.2078,1596.9,1596.0,3.2078]
[1744270228053,3.2078,1596.5,1596.1,4.8794]
[1744270228250,8.749,1597.9,1596.1,5.0]
[1744270228251,3.2078,1596.2,1596.1,5.0]
[1744270228451,0.00937705,1596.6,1596.2,0.6264]
[1744270228644,3.2078,1597.5,1596.5,3.2078]
[1744270228846,3.2078,1597.5,1597.1,3.2078]
[1744270229053,3.2078,1597.7,1597.1,12.8308]
[1744270229257,3.2078,1597.7,1597.0,0.03262806]
[1744270229555,3.2078,1597.5,1597.3,0.0652501]
[1744270229754,1.25252,1597.3,1595.9,1.25351]
[1744270229946,3.2078,1597.2,1596.7,3.2078]
[1744270230143,1.2529,1596.8,1596.5,7.02359259]
[1744270230345,3.2078,1596.8,1595.7,3.2078]
[1744270230653,3.2078,1595.8,1595.1,55.44188828]
[1744270230953,7.05e-06,1595.9,1595.6,3.22077117]
[1744270231145,3.2078,1597.5,1595.9,1.2535]
[1744270231345,3.2078,1598.5,1597.3,3.2078]
[1744270231549,3.2078,1598.3,1597.4,1.5276]
[1744270231750,3.2078,1598.5,1597.6,3.2078]
[1744270231946,3.2078,1598.5,1598.0,3.2078]
[1744270232142,3.2078,1598.5,1598.1,1.6204]
[1744270232653,3.2078,1599.7,1598.4,3.2078]
[1744270232951,3.2078,1599.7,1598.9,3.2078]
[1744270233161,4.45836,1599.8,1598.9,3.2078]
[1744270233357,3.2078,1599.7,1599.0,40.8]
[1744270233659,3.2078,1599.3,1599.0,40.8]
[1744270233850,3.2078,1599.1,1598.6,3.2078]
[1744270234255,4.45889,1599.1,1599.0,0.00937705]
[1744270234755,3.2078,1599.3,1599.0,0.00937705]
[1744270234956,3.21717705,1599.5,1599.0,0.00937705]
[1744270235260,0.00937705,1599.5,1599.0,0.00937705]
[1744270235755,0.00937705,1599.5,1599.0,1.62077705]
[1744270235952,3.21717705,1599.5,1599.2,0.0325489]
[1744270236153,0.00937705,1599.5,1599.2,0.0325489]
[1744270236353,3.2078,1599.4,1599.2,0.0325489]
[1744270236548,0.00937705,1599.5,1599.2,8.2403489]
[1744270236753,3.2078,1599.3,1599.2,0.0325489]
[1744270236944,3.21717705,1599.5,1599.2,0.0325489]
[1744270237144,3.21717705,1599.5,1599.2,3.2403489]
[1744270237355,3.21717705,1599.5,1599.3,1.6114]
[1744270237754,3.21717705,1599.5,1599.2,3.2403489]
[1744270237954,3.21717705,1599.5,1599.3,0.0325489]
[1744270238160,1.25081,1599.4,1599.3,0.0325489]
[1744270238360,4.46795705,1599.5,1599.3,0.0325489]
[1744270238953,1.2182611,1599.4,1599.2,1.5567]
[1744270239255,3.21717705,1599.5,1599.2,1.5567]
[1744270239463,0.00937705,1599.5,1599.2,1.5567]
[1744270239759,1.26012705,1599.5,1599.2,4.7645]
[1744270239961,1.26011705,1599.5,1599.2,4.7645]
[1744270240161,3.2078,1599.4,1599.0,0.00937705]
[1744270240457,0.00937705,1599.5,1599.1,3.2078]
[1744270240661,3.2078,1599.4,1599.0,0.00937705]
[1744270240852,1.25095,1599.3,1599.0,0.00937705]
[1744270241052,1.251,1599.2,1599.0,0.00937705]
[1744270241360,1.25093,1599.3,1599.0,3.21717705]
[1744270241657,3.2078,1599.4,1599.0,3.21717705]
[1744270241858,4.45866,1599.4,1599.0,3.21717705]
[1744270242057,0.00937705,1599.5,1599.2,3.2078]
[1744270242363,0.00937705,1599.5,1599.3,1.5794]
[1744270242962,1.25081,1599.4,1599.3,1.5794]
[1744270243163,3.2078,1599.4,1599.0,0.00937705]
[1744270243564,4.45868,1599.4,1599.0,0.00937705]
[1744270243768,3.2078,1599.4,1599.1,3.2078]
[1744270243960,0.00937705,1599.5,1599.1,3.2078]
[1744270244165,0.00937705,1599.5,1599.3,4.45863]
[1744270244366,0.00937705,1599.5,1599.4,2.83281]
[1744270244769,0.00937705,1599.5,1599.4,7.83281]
[1744270245266,1.24995,1600.6,1599.5,3.2078]